fUSD/lending_fUSD_20251213
["ID","MTS","AMOUNT","RATE_DAILY","PERIOD"]
[398436928,1765654353586,-150.0,0.00048109,120]
[398436929,1765654353624,-200.0,0.00048113,120]
[398436930,1765654353662,-4112.48,0.00048219,120]
[398436931,1765654353701,-191.0,0.000484,120]
[398436932,1765654353739,-161.0,0.000484,120]
[398436933,1765654353779,-1462.90336895,0.000485,120]
[398436934,1765654353818,-150.0,0.00048552,120]
[398436935,1765654353855,-10000.0,0.0004862,120]
[398436936,1765654353892,-2000.0,0.0004877,73]
[398436937,1765654353930,-150.0,0.0004877,120]
[398436938,1765654353965,-312.83078995,0.000488,120]
[398436939,1765654354001,-2246.82617813,0.000488,120]
[398436940,1765654354038,-782.52,0.00048832,120]
[398436941,1765654354073,-1210.46697506,0.00048875,60]
[398436942,1765654354111,-50543.691,0.0004888,30]
[398436943,1765654354147,-2000.0,0.0004889,71]
[398436944,1765654354185,-191.0,0.000489,120]
[398436945,1765654354223,-161.0,0.000489,120]
[398436946,1765654354259,-2548.66668017,0.000489,120]
[398436947,1765654354296,-4000.0,0.00048989,31]
[398436948,1765654354333,-215.0,0.0004899,30]
[398436949,1765654354376,-500.0,0.00049,120]
[398436950,1765654354415,-427.9567567,0.00049,120]
[398436951,1765654354454,-11316.95520033,0.00049,30]
[398436952,1765654354494,-150.0,0.00049,120]
[398436953,1765654354533,-1574.0,0.00049,120]
[398436954,1765654354573,-1351.8037,0.00049,120]
[398436955,1765654354611,-10000.0,0.00049,120]
[398436956,1765654354649,-4700.0,0.00049,33]
[398436957,1765654354686,-328.06834397,0.00049,120]
[398436958,1765654354725,-7037.61090842,0.00049,120]
[398436959,1765654354764,-281955.54300489,0.00049,120]
[398436960,1765654354806,-297.75863423,0.00049,120]
[398436961,1765654354846,-150.0,0.00049,60]
[398436962,1765654354885,-200.0,0.00049062,120]
[398436963,1765654354924,-150.0,0.00049212,120]
[398436964,1765654354962,-237.01189784,0.000493,120]
[398436965,1765654355002,-500.0,0.00049315,120]
[398436966,1765654355042,-228.36591379,0.00049315,120]
[398436967,1765654355079,-500.0,0.00049315,120]
[398436968,1765654355117,-544.73795403,0.00049315,120]
[398436969,1765654355156,-4112.48,0.00049315,120]
[398436970,1765654355193,-1000.0,0.00049315,120]
[398436971,1765654355230,-1000.0,0.00049315,120]
[398436973,1765654355267,-1000.0,0.00049315,120]
[398436974,1765654355305,-1000.0,0.00049315,120]
[398436975,1765654355341,-1000.0,0.00049315,120]
[398436976,1765654355379,-1000.0,0.00049315,120]
[398436977,1765654355418,-1000.0,0.00049315,120]
[398436978,1765654355457,-1000.0,0.00049315,120]
[398436979,1765654355498,-1000.0,0.00049315,120]
[398436980,1765654355536,-1000.0,0.00049315,120]
[398436981,1765654355575,-294.51812181,0.00049315,120]
[398436982,1765654355611,-3392.0701881,0.00049369,30]
[398436983,1765654355649,-191.0,0.000494,120]
[398436985,1765654355686,-161.0,0.000494,120]
[398436986,1765654355722,-2000.0,0.0004944,73]
[398436987,1765654355759,-2040.7417,0.00049444,30]
[398436988,1765654355800,-8522.77,0.000495,120]
[398436989,1765654355837,-483.0,0.00049733,120]
[398436990,1765654355871,-616.15909663,0.0004978,120]
[398436991,1765654355904,-4603.0502225,0.000498,120]
[398436992,1765654355939,-1000.0,0.000498,30]
[398436993,1765654355981,-2000.0,0.0004985,71]
[398436994,1765654356015,-1000.0,0.00049899,120]
[398436995,1765654356051,-191.0,0.000499,120]
[398436996,1765654356090,-161.0,0.000499,120]
[398436998,1765654356126,-1738.0,0.000499,90]
[398436999,1765654356166,-2248096.68910845,0.0004999,120]
[398437005,1765654404969,-1370.82,0.00032876,120]
[398437006,1765654405008,-2037.614543,0.00032999,120]
[398437007,1765654405048,-1370.82,0.00033972,120]
[398437008,1765654405093,-1370.82,0.00035068,120]
[398437009,1765654405140,-1370.82,0.00036164,120]
[398437010,1765654405191,-1370.82,0.0003726,120]
[398437011,1765654405250,-1370.82,0.00038356,120]
[398437012,1765654405289,-1370.82,0.00039452,120]
[398437013,1765654405327,-300.140332,0.00039999,98]
[398437014,1765654405366,-702.65,0.0004,30]
[398437015,1765654405407,-689.13,0.0004,30]
[398437017,1765654405449,-150.0,0.00040246,30]
[398437018,1765654405489,-627.99315763,0.00040246,30]
[398437019,1765654405527,-1370.82,0.00040547,120]
[398437020,1765654405563,-2600.0,0.00041309,60]
[398437021,1765654405600,-1370.82,0.00041643,120]
[398437022,1765654405637,-2600.0,0.00041857,60]
[398437023,1765654405678,-200.0,0.00041999,120]
[398437024,1765654405718,-710.39,0.00042404,30]
[398437025,1765654405754,-2600.0,0.00042405,60]
[398437026,1765654408188,-713.92,0.00042437,30]
[398437027,1765654408229,-1370.82,0.00042739,120]
[398437028,1765654408270,-327.918612,0.00043499,120]
[398437029,1765654408307,-2600.0,0.00043501,60]
[398437030,1765654408348,-1370.82,0.00043835,120]
[398437031,1765654408393,-2600.0,0.00044597,60]
[398437032,1765654408437,-1370.82,0.00044931,120]
[398437033,1765654408476,-1943.55,0.00045,30]
[398437034,1765654408515,-2137.78,0.00045,30]
[398437035,1765654408551,-1128.14621962,0.00045293,120]
[398437036,1765654408586,-1600.9,0.00045293,120]
[398437037,1765654408623,-681.26,0.00045293,120]
[398437038,1765654408667,-672.68722471,0.00045293,120]
[398437039,1765654408706,-2600.0,0.00045693,60]
[398437040,1765654408746,-1370.82,0.00046027,120]
[398437041,1765654408783,-2600.0,0.00046789,60]
[398437042,1765654408821,-1370.82,0.00047123,120]
[398437043,1765654408858,-1943.55,0.0004725,30]
[398437044,1765654408897,-2600.0,0.00047885,60]
[398437045,1765654408934,-150.0,0.00048,120]
[398437046,1765654408970,-700.0,0.00048,120]
[398437047,1765654409006,-1100.0,0.00048156,60]
[398437048,1765654409040,-1370.82,0.00048219,120]
[398437049,1765654409076,-150.11799915,0.00048608,30]
[398437050,1765654409113,-1100.0,0.00048704,60]
[398437051,1765654409150,-2600.0,0.00048981,60]
[398437052,1765654409189,-1100.0,0.00049252,60]
[398437053,1765654409231,-1370.82,0.00049315,120]
[398437054,1765654409268,-1943.55,0.00049613,30]
[398437055,1765654409304,-877.69702907,0.0004974,120]
[398437056,1765654409342,-683.9880336,0.0004974,120]
[398437057,1765654409381,-299.97181423,0.0004974,120]
[398437058,1765654409421,-1100.0,0.000498,60]
[398437059,1765654409457,-29585.26925166,0.00049915,120]
[398437060,1765654409492,-2728.29282873,0.00049915,120]
[398437061,1765654409529,-200.0,0.00049989,120]
[398437062,1765654409571,-200.0,0.00049989,120]
[398437063,1765654409612,-151.0,0.00049989,120]
[398437064,1765654409649,-151.0,0.00049989,120]
[398437065,1765654409685,-150.0,0.00049989,120]
[398437066,1765654409721,-500.0,0.00049989,120]
[398437067,1765654409756,-150.0,0.00049989,120]
[398437068,1765654409793,-153.80697456,0.00049989,120]
[398437069,1765654409828,-500.0,0.00049989,120]
[398437070,1765654409862,-150.0,0.00049989,120]
[398437071,1765654409897,-151.0,0.00049989,120]
[398437072,1765654409930,-150.0,0.00049989,120]
[398437073,1765654409965,-500.0,0.00049989,120]
[398437074,1765654410000,-500.0,0.00049989,120]
[398437075,1765654410036,-500.0,0.00049989,120]
[398437076,1765654410071,-150.0,0.00049989,120]
[398437077,1765654410475,-150.0,0.00049989,120]
[398437078,1765654410528,-500.0,0.00049989,120]
[398437079,1765654410567,-500.0,0.00049989,120]
[398437080,1765654410605,-150.0,0.00049989,120]
[398437081,1765654410644,-150.0,0.00049989,120]
[398437082,1765654410683,-500.0,0.00049989,120]
[398437083,1765654410719,-550.0,0.00049989,120]
[398437084,1765654410754,-500.0,0.00049989,120]
[398437085,1765654410789,-250.0,0.00049989,120]
[398437086,1765654410822,-500.0,0.00049989,120]
[398437087,1765654410856,-150.0,0.00049989,120]
[398437088,1765654410889,-500.0,0.00049989,120]
[398437089,1765654410923,-500.0,0.00049989,120]
[398437090,1765654410959,-150.0,0.00049989,120]
[398437091,1765654410993,-151.0,0.00049989,120]
[398437092,1765654411028,-250.0,0.00049989,120]
[398437093,1765654411062,-500.0,0.00049989,120]
[398437094,1765654411096,-345.39785189,0.00049989,120]
[398437095,1765654411131,-150.0,0.00049989,120]
[398437096,1765654411167,-500.0,0.00049989,120]
[398437097,1765654411203,-151.0,0.00049989,120]
[398437098,1765654411239,-150.0,0.00049989,120]
[398437099,1765654411272,-150.0,0.00049989,120]
[398437100,1765654411308,-151.0,0.00049989,120]
[398437101,1765654411346,-156.45165699,0.00049989,120]
[398437102,1765654411385,-500.0,0.00049989,120]
[398437103,1765654411426,-151.0,0.00049989,120]
[398437104,1765654411462,-204.08884044,0.00049989,120]
[398437105,1765654411498,-151.0,0.00049989,120]
[398437106,1765654411534,-500.0,0.00049989,120]
[398437107,1765654411571,-151.0,0.00049989,120]
[398437108,1765654411608,-150.0,0.00049989,120]
[398437109,1765654411645,-151.0,0.00049989,120]
[398437110,1765654411683,-150.0,0.00049989,120]
[398437111,1765654411720,-200.0,0.00049989,120]
[398437112,1765654411757,-151.0,0.00049989,120]
[398437113,1765654411792,-500.0,0.00049989,120]
[398437114,1765654411829,-151.0,0.00049989,120]
[398437115,1765654411865,-150.0,0.00049989,120]
[398437116,1765654411899,-150.0,0.00049989,120]
[398437117,1765654411936,-945.0,0.00049989,120]
[398437118,1765654411971,-150.0,0.00049989,120]
[398437119,1765654412008,-945.0,0.00049989,120]
[398437120,1765654412046,-150.0,0.00049989,120]
[398437121,1765654412082,-151.0,0.00049989,120]
[398437122,1765654412115,-945.0,0.00049989,120]
[398437123,1765654412148,-150.0,0.00049989,120]
[398437124,1765654412182,-150.0,0.00049989,120]
[398437125,1765654412216,-211.93404787,0.00049989,120]
[398437126,1765654412250,-945.0,0.00049989,120]
[398437127,1765654412284,-150.60890833,0.00049989,120]
[398437128,1765654412319,-945.0,0.00049989,120]
[398437129,1765654412359,-151.0,0.00049989,120]
[398437130,1765654412399,-945.0,0.00049989,120]
[398437131,1765654412436,-945.0,0.00049989,120]
[398437132,1765654412473,-945.0,0.00049989,120]
[398437133,1765654412509,-151.0,0.00049989,120]
[398437134,1765654412547,-945.0,0.00049989,120]
[398437135,1765654412584,-500.0,0.00049989,120]
[398437136,1765654412622,-150.0,0.00049989,120]
[398437137,1765654412657,-945.0,0.00049989,120]
[398437138,1765654412691,-150.0,0.00049989,120]
[398437139,1765654412726,-945.0,0.00049989,120]
[398437140,1765654412762,-150.0,0.00049989,120]
[398437141,1765654412800,-150.0,0.00049989,120]
[398437142,1765654412835,-150.0,0.00049989,120]
[398437143,1765654412869,-945.0,0.00049989,120]
[398437144,1765654412902,-150.0,0.00049989,120]
[398437145,1765654412935,-233.75403059,0.00049989,120]
[398437146,1765654412968,-200.0,0.00049989,120]
[398437147,1765654413000,-945.0,0.00049989,120]
[398437148,1765654413035,-945.0,0.00049989,120]
[398437149,1765654413068,-945.0,0.00049989,120]
[398437150,1765654413101,-150.0,0.00049989,120]
[398437151,1765654413134,-945.0,0.00049989,120]
[398437152,1765654413169,-166.39372239,0.00049989,120]
[398437153,1765654413207,-150.0,0.00049989,120]
[398437154,1765654413244,-150.0,0.00049989,120]
[398437155,1765654413281,-200.0,0.00049989,120]
[398437156,1765654413320,-945.0,0.00049989,120]
[398437157,1765654413357,-500.0,0.00049989,120]
[398437158,1765654413395,-150.0,0.00049989,120]
[398437159,1765654413435,-150.0,0.00049989,120]
[398437160,1765654413473,-500.0,0.00049989,120]
[398437161,1765654413510,-151.73216425,0.00049989,120]
[398437162,1765654413545,-945.0,0.00049989,120]
[398437163,1765654413580,-500.0,0.00049989,120]
[398437164,1765654413614,-500.0,0.00049989,120]
[398437165,1765654413648,-500.0,0.00049989,120]
[398437166,1765654413681,-600.0,0.00049989,120]
[398437167,1765654413716,-945.0,0.00049989,120]
[398437168,1765654413750,-1209.0,0.00049989,120]
[398437169,1765654413784,-174.61575993,0.00049989,120]
[398437170,1765654413821,-1209.0,0.00049989,120]
[398437171,1765654413856,-150.0,0.00049989,120]
[398437172,1765654413891,-1209.0,0.00049989,120]
[398437173,1765654414166,-410.83233614,0.00049989,120]
[398437174,1765654414204,-1209.0,0.00049989,120]
[398437175,1765654414243,-500.0,0.00049989,120]
[398437176,1765654414280,-500.0,0.00049989,120]
[398437177,1765654414313,-1209.0,0.00049989,120]
[398437178,1765654414349,-500.0,0.00049989,120]
[398437179,1765654414386,-500.0,0.00049989,120]
[398437180,1765654414425,-945.0,0.00049989,120]
[398437181,1765654414463,-500.0,0.00049989,120]
[398437182,1765654414498,-470.54059325,0.00049989,120]
[398437183,1765654414534,-1209.0,0.00049989,120]
[398437184,1765654414571,-414.43809419,0.00049989,120]
[398437185,1765654414608,-1209.0,0.00049989,120]
[398437186,1765654414645,-500.0,0.00049989,120]
[398437187,1765654414680,-500.0,0.00049989,120]
[398437188,1765654414714,-1209.0,0.00049989,120]
[398437189,1765654414748,-1209.0,0.00049989,120]
[398437190,1765654414782,-500.0,0.00049989,120]
[398437191,1765654414816,-500.0,0.00049989,120]
[398437192,1765654414851,-1209.0,0.00049989,120]
[398437193,1765654414884,-500.0,0.00049989,120]
[398437194,1765654414918,-1209.0,0.00049989,120]
[398437195,1765654414951,-150.0,0.00049989,120]
[398437196,1765654414983,-500.0,0.00049989,120]
[398437197,1765654415015,-150.0,0.00049989,120]
[398437198,1765654415049,-500.0,0.00049989,120]
[398437199,1765654415082,-1209.0,0.00049989,120]
[398437200,1765654415116,-500.0,0.00049989,120]
[398437201,1765654415151,-500.0,0.00049989,120]
[398437202,1765654415190,-945.0,0.00049989,120]
[398437203,1765654415230,-1209.0,0.00049989,120]
[398437204,1765654415269,-500.0,0.00049989,120]
[398437205,1765654415313,-1209.0,0.00049989,120]
[398437206,1765654415353,-500.0,0.00049989,120]
[398437207,1765654415392,-300.0,0.00049989,120]
[398437208,1765654415438,-1775280.11392369,0.0004999,120]
[398437209,1765654415481,-3051319.65405009,0.0004999,120]
[398437215,1765654424733,-300.140333,0.00047308,120]
[398437216,1765654424773,-1600.0,0.00047334,60]
[398437217,1765654424813,-1209.0,0.00049989,120]
[398437218,1765654424849,-1209.0,0.00049989,120]
[398437219,1765654424888,-500.0,0.00049989,120]
[398437220,1765654424927,-1209.0,0.00049989,120]
[398437221,1765654424976,-1209.0,0.00049989,120]
[398437222,1765654425015,-500.0,0.00049989,120]
[398437223,1765654425052,-500.0,0.00049989,120]
[398437224,1765654425088,-500.0,0.00049989,120]
[398437225,1765654425125,-1209.0,0.00049989,120]
[398437226,1765654425164,-500.0,0.00049989,120]
[398437227,1765654425204,-500.0,0.00049989,120]
[398437228,1765654425245,-500.0,0.00049989,120]
[398437229,1765654425287,-945.0,0.00049989,120]
[398437230,1765654425329,-1209.0,0.00049989,120]
[398437231,1765654425368,-500.0,0.00049989,120]
[398437232,1765654425409,-500.0,0.00049989,120]
[398437233,1765654425445,-287.24719378,0.00049989,120]
[398437234,1765654425481,-1209.0,0.00049989,120]
[398437235,1765654425521,-566.71713956,0.00049989,120]
[398437236,1765654425569,-945.0,0.00049989,120]
[398437237,1765654425612,-1209.0,0.00049989,120]
[398437238,1765654425657,-1209.0,0.00049989,120]
[398437239,1765654425697,-954.30827656,0.00049989,120]
[398437240,1765654425737,-1216.31057432,0.00049989,120]
[398437241,1765654425781,-1948679.34594991,0.0004999,120]
[398437242,1765654425822,-3029124.93053287,0.0004999,120]
[398437243,1765654432647,-333.25,0.000351,30]
[398437244,1765654435268,-694.25,0.00042437,30]
[398437245,1765654435310,-308.69308967,0.00047308,120]
[398437246,1765654435349,-1600.0,0.00047882,60]
[398437247,1765654435389,-1600.0,0.0004843,60]
[398437248,1765654435428,-1600.0,0.00048978,60]
[398437249,1765654435473,-1000.0,0.00049722,30]
[398437250,1765654435514,-1970874.06946713,0.0004999,120]
[398437251,1765654435556,-3021989.7374432,0.0004999,120]
[398437252,1765654441493,-1978009.2625568,0.0004999,120]
[398437253,1765654441539,-3021990.7374432,0.0004999,120]
[398437255,1765654447790,-688.69,0.00042437,30]
[398437256,1765654447840,-1978008.2625568,0.0004999,120]
[398437257,1765654447880,-155.779,0.0004999,30]
[398437258,1765654448321,-600.0,0.0004999,120]
[398437259,1765654448363,-2851.86828504,0.00049999,31]
[398437260,1765654448408,-50000.0,0.0005,50]
[398437261,1765654448456,-150.0,0.0005,40]
[398437262,1765654448511,-172.73548475,0.0005,120]
[398437263,1765654448557,-2080.0612421,0.0005,120]
[398437264,1765654448599,-248.9015239,0.0005,120]
[398437265,1765654448643,-1086.9895986,0.0005,120]
[398437266,1765654448686,-225.52771065,0.0005,120]
[398437267,1765654448725,-165.43602934,0.0005,120]
[398437268,1765654448763,-500.0,0.0005,30]
[398437269,1765654448800,-697.60446833,0.0005,120]
[398437270,1765654448836,-200.0,0.0005,120]
[398437271,1765654448872,-150.0,0.0005,120]
[398437272,1765654448910,-1000.0,0.0005,120]
[398437273,1765654448947,-158.87434359,0.0005,120]
[398437274,1765654448984,-426.8620032,0.0005,120]
[398437275,1765654449023,-500.0,0.0005,120]
[398437276,1765654449060,-1630.12192776,0.0005,30]
[398437277,1765654449097,-699.53777484,0.0005,120]
[398437278,1765654449135,-500.0,0.0005,120]
[398437279,1765654449172,-12073.18,0.0005,30]
[398437280,1765654449209,-1000.0,0.0005,30]
[398437281,1765654449244,-11435.0,0.0005,120]
[398437282,1765654449283,-4903.0,0.0005,120]
[398437283,1765654449321,-3078.99406067,0.0005,120]
[398437284,1765654449361,-2802.40907333,0.0005,120]
[398437285,1765654449402,-6569.42965558,0.0005,120]
[398437286,1765654449442,-2192.14230815,0.0005,120]
[398437287,1765654449482,-1367.78470618,0.0005,120]
[398437288,1765654449525,-1471.92928705,0.0005,120]
[398437289,1765654449570,-476.54667936,0.0005,120]
[398437290,1765654449616,-1184.2,0.0005,30]
[398437291,1765654449664,-5001.4935,0.0005,30]
[398437292,1765654449710,-564.56893965,0.0005,30]
[398437293,1765654449758,-500.0,0.0005,90]
[398437294,1765654449802,-150.0,0.0005,90]
[398437295,1765654449845,-1141.82489761,0.0005,120]
[398437296,1765654449890,-7727.93752849,0.0005,120]
[398437297,1765654449937,-4988.27858203,0.0005,120]
[398437298,1765654449983,-968.15982161,0.0005,120]
[398437299,1765654450028,-2000.0,0.0005,120]
[398437300,1765654450075,-10000.0,0.0005,120]
[398437301,1765654450121,-2279.43754024,0.0005,120]
[398437302,1765654450172,-2423.9,0.0005,120]
[398437303,1765654450216,-81767.33226602,0.0005,30]
[398437304,1765654450260,-101011.35289586,0.0005,60]
[398437305,1765654450307,-150.0,0.0005,120]
[398437306,1765654450353,-714.96,0.0005,120]
[398437307,1765654450406,-829.47,0.0005,120]
[398437308,1765654450459,-898.13,0.0005,30]
[398437309,1765654450516,-20000.0,0.0005,120]
[398437310,1765654450570,-150.0,0.0005,60]
[398437311,1765654450616,-150.0,0.0005,120]
[398437312,1765654450663,-150.0,0.0005,120]
[398437313,1765654450707,-150.0,0.0005,120]
[398437314,1765654450763,-700.0,0.0005,120]
[398437315,1765654450817,-500.0,0.0005,120]
[398437316,1765654450864,-1600.0,0.00050074,60]
[398437317,1765654450915,-2600.0,0.00050077,60]
[398437318,1765654450970,-1000.0,0.000501,120]
[398437319,1765654451025,-483.0,0.00050151,120]
[398437320,1765654451079,-1100.0,0.00050348,60]
[398437321,1765654451131,-18566.0,0.00050379,120]
[398437322,1765654451178,-191.0,0.000504,120]
[398437323,1765654451228,-161.0,0.000504,120]
[398437324,1765654451279,-1370.82,0.0005041,120]
[398437325,1765654451328,-500.0,0.000505,120]
[398437326,1765654451384,-600.0,0.00050538,120]
[398437327,1765654451440,-152.0,0.00050627,120]
[398437328,1765654451497,-2255.15047122,0.000508,120]
[398437329,1765654451559,-150.0,0.00050889,120]
[398437330,1765654451609,-191.0,0.000509,120]
[398437331,1765654451659,-161.0,0.000509,120]
[398437332,1765654451718,-3257.8096791,0.000509,120]
[398437333,1765654451775,-18089.0,0.00050975,60]
[398437334,1765654451841,-1000.0,0.00051,120]
[398437335,1765654451903,-150.0,0.00051,40]
[398437336,1765654451962,-150.0,0.00051,120]
[398437337,1765654452020,-1000.0,0.00051,120]
[398437338,1765654452077,-500.0,0.00051,120]
[398437339,1765654452135,-500.0,0.00051,120]
[398437340,1765654452195,-1228.01456101,0.00051,120]
[398437341,1765654452256,-1184.21,0.00051,30]
[398437342,1765654452317,-2065.0,0.00051,120]
[398437343,1765654452392,-1574.0,0.00051,120]
[398437344,1765654452457,-10000.0,0.00051,120]
[398437345,1765654452522,-3171.9264065,0.00051,120]
[398437346,1765654452587,-280.46550054,0.00051,60]
[398437347,1765654452648,-600.0,0.00051086,120]
[398437348,1765654452698,-2306.5,0.000511,120]
[398437349,1765654452755,-1600.0,0.0005117,60]
[398437350,1765654452817,-2600.0,0.00051173,60]
[398437351,1765654452873,-150.0,0.0005129,120]
[398437352,1765654452925,-19504.0,0.00051379,120]
[398437353,1765654453340,-18566.0,0.00051379,120]
[398437354,1765654453400,-500.0,0.000514,120]
[398437355,1765654453460,-191.0,0.000514,120]
[398437356,1765654453524,-161.0,0.000514,120]
[398437357,1765654453587,-1100.0,0.00051444,60]
[398437358,1765654453651,-500.0,0.000515,120]
[398437359,1765654453713,-1370.82,0.00051506,120]
[398437360,1765654453778,-1509.96279343,0.000517,120]
[398437361,1765654453844,-202.78045878,0.000517,120]
[398437362,1765654453906,-191.0,0.000519,120]
[398437363,1765654453967,-161.0,0.000519,120]
[398437364,1765654454034,-18089.0,0.00051975,60]
[398437365,1765654454096,-1581.7921072,0.0005198,110]
[398437366,1765654454151,-1000.0,0.00051999,120]
[398437367,1765654454205,-200.0,0.00052,40]
[398437368,1765654454271,-171.72723721,0.00052,120]
[398437369,1765654454323,-150.0,0.00052,120]
[398437370,1765654454376,-1000.0,0.00052,120]
[398437371,1765654454439,-500.0,0.00052,120]
[398437372,1765654454506,-300.0,0.00052,120]
[398437373,1765654454572,-51900.07763054,0.00052,120]
[398437374,1765654454636,-60000.0,0.00052,30]
[398437375,1765654454700,-451.0,0.00052,120]
[398437376,1765654454763,-18519.91,0.00052,120]
[398437377,1765654454828,-12953.93393266,0.00052,120]
[398437378,1765654454892,-163.39,0.00052,120]
[398437379,1765654454957,-700.0,0.00052054,120]
[398437380,1765654455021,-800.0,0.00052054,120]
[398437381,1765654455087,-515.72326105,0.00052054,120]
[398437382,1765654455152,-500.0,0.00052054,120]
[398437383,1765654455217,-500.0,0.00052054,120]
[398437384,1765654455283,-500.0,0.00052054,120]
[398437385,1765654455350,-500.0,0.00052054,120]
[398437386,1765654455417,-154.7635846,0.00052054,120]
[398437387,1765654455484,-500.0,0.00052054,120]
[398437388,1765654455549,-500.0,0.00052054,120]
[398437389,1765654455613,-500.0,0.00052054,120]
[398437390,1765654455677,-500.0,0.00052054,120]
[398437391,1765654455732,-500.0,0.00052054,120]
[398437392,1765654455795,-500.0,0.00052054,120]
[398437393,1765654455858,-500.0,0.00052054,120]
[398437394,1765654455923,-500.0,0.00052054,120]
[398437395,1765654455986,-713.16,0.00052054,120]
[398437396,1765654456042,-713.16,0.00052054,120]
[398437397,1765654456095,-713.16,0.00052054,120]
[398437398,1765654456150,-713.16,0.00052054,120]
[398437399,1765654456215,-713.16,0.00052054,120]
[398437400,1765654456280,-713.16,0.00052054,120]
[398437401,1765654456336,-713.16,0.00052054,120]
[398437402,1765654456393,-713.16,0.00052054,120]
[398437403,1765654456451,-713.16,0.00052054,120]
[398437404,1765654456511,-713.16,0.00052054,120]
[398437405,1765654456569,-713.16,0.00052054,120]
[398437406,1765654456629,-713.16,0.00052054,120]
[398437407,1765654456687,-713.16,0.00052054,120]
[398437408,1765654456739,-713.16,0.00052054,120]
[398437409,1765654456792,-713.16,0.00052054,120]
[398437410,1765654456845,-713.16,0.00052054,120]
[398437411,1765654456899,-713.16,0.00052054,120]
[398437412,1765654456950,-713.16,0.00052054,120]
[398437413,1765654457001,-713.16,0.00052054,120]
[398437414,1765654457053,-713.16,0.00052054,120]
[398437415,1765654457102,-713.16,0.00052054,120]
[398437416,1765654457154,-713.16,0.00052054,120]
[398437417,1765654457206,-713.16,0.00052054,120]
[398437418,1765654457256,-713.38235871,0.00052054,120]
[398437419,1765654457305,-500.0,0.00052054,120]
[398437420,1765654457353,-512.23843308,0.00052054,120]
[398437421,1765654457399,-500.0,0.00052054,120]
[398437422,1765654457446,-500.0,0.00052054,120]
[398437423,1765654457494,-500.0,0.00052054,120]
[398437424,1765654457548,-500.0,0.00052054,120]
[398437425,1765654457599,-500.0,0.00052054,120]
[398437426,1765654457648,-500.0,0.00052054,120]
[398437427,1765654457696,-500.0,0.00052054,120]
[398437428,1765654457746,-500.0,0.00052054,120]
[398437429,1765654457792,-500.0,0.00052054,120]
[398437430,1765654457838,-500.0,0.00052054,120]
[398437431,1765654457883,-500.0,0.00052054,120]
[398437432,1765654457927,-500.0,0.00052054,120]
[398437433,1765654457971,-1943.55,0.00052093,30]
[398437434,1765654458017,-150.0,0.00052111,120]
[398437435,1765654458063,-1600.0,0.00052266,60]
[398437436,1765654458106,-1030.28783468,0.00052269,60]
[398437437,1765654458145,-878.78,0.00052317,120]
[398437438,1765654458184,-18566.0,0.00052379,120]
[398437439,1765654458223,-191.0,0.000524,120]
[398437440,1765654458259,-161.0,0.000524,120]
[398437441,1765654458299,-234.0,0.000524,68]
[398437442,1765654458340,-500.0,0.000525,120]